bitfinex/quotes_ETHUSD_20250708
["timestamp","ask_amount","ask_price","bid_price","bid_amount"]
[1751949713832,5.943,2546.4,2546.1,0.7712]
[1751949714139,0.36023833,2546.3,2546.1,0.7712]
[1751949714833,0.36023833,2546.2,2546.1,0.7712]
[1751949715135,1.77549223,2546.3,2546.0,0.198]
[1751949715335,0.36023833,2546.2,2546.0,0.002]
[1751949715534,0.36023833,2546.1,2546.0,0.002]
[1751949716034,0.36023833,2546.2,2546.0,0.002]
[1751949716239,0.36023833,2546.1,2546.0,0.002]
[1751949717331,2.22528569,2546.3,2546.0,0.002]
[1751949717521,0.36107906,2546.2,2546.0,0.002]
[1751949724168,1.61119163,2546.3,2546.0,0.002]
[1751949724466,0.3605199,2546.2,2546.0,0.002]
[1751949725363,2.44619079,2546.3,2546.0,0.002]
[1751949725566,0.35990363,2546.2,2546.0,0.002]
[1751949725745,0.36090363,2546.2,2546.0,0.002]
[1751949728165,0.001,2546.2,2546.0,0.002]
[1751949728334,0.36089799,2546.2,2546.0,0.002]
[1751949730238,1.23179366,2546.2,2546.0,0.002]
[1751949730437,0.87189567,2546.2,2546.0,0.002]
[1751949731473,1.16582342,2546.1,2546.0,0.002]
[1751949731649,1.36182342,2546.1,2546.0,0.002]
[1751949738756,13.24682342,2546.1,2546.0,0.002]
[1751949738942,16.1004726,2546.1,2546.0,0.002]
[1751949739683,14.68551839,2546.1,2546.0,0.002]
[1751949740168,14.68663615,2546.1,2546.0,0.002]
[1751949740882,13.88073615,2546.1,2546.0,0.002]
[1751949742690,14.67263615,2546.1,2546.0,0.002]
[1751949742898,16.08726289,2546.1,2546.0,0.002]
[1751949744202,14.67263615,2546.1,2546.0,0.002]
[1751949744376,16.45549858,2546.1,2546.0,0.002]
[1751949745290,15.04099321,2546.1,2546.0,0.002]
[1751949745492,16.4554298,2546.1,2546.0,0.002]
[1751949745906,16.45635079,2546.1,2546.0,0.002]
[1751949746064,20.38392629,2546.1,2546.0,0.002]
[1751949746684,30.38392629,2546.1,2546.0,0.002]
[1751949747294,30.38378895,2546.1,2546.0,0.002]
[1751949747498,32.15288027,2546.1,2546.0,0.002]
[1751949747796,30.38378895,2546.1,2546.0,0.002]
[1751949747991,32.15288027,2546.1,2546.0,0.002]
[1751949748197,30.38378895,2546.1,2546.0,0.002]
[1751949748400,30.38478895,2546.1,2546.0,0.002]
[1751949748768,36.31268281,2546.1,2546.0,0.002]
[1751949749128,36.3126874,2546.1,2546.0,0.002]
[1751949749272,36.31183307,2546.1,2546.0,0.002]
[1751949750228,38.07881089,2546.1,2546.0,0.002]
[1751949751833,36.31166409,2546.1,2546.0,0.002]
[1751949752409,38.07716734,2546.1,2546.0,0.002]
[1751949752925,36.31166409,2546.1,2546.0,0.002]
[1751949753435,38.07677842,2546.1,2546.0,0.002]
[1751949753959,36.31166409,2546.1,2546.0,0.002]
[1751949754438,38.07643873,2546.1,2546.0,0.002]
[1751949754816,38.08092422,2546.1,2546.0,0.002]
[1751949756344,38.07839354,2546.1,2546.0,0.002]
[1751949757518,37.71073922,2546.1,2546.0,0.002]
[1751949757720,38.07829694,2546.1,2546.0,0.002]
[1751949759445,36.31394904,2546.1,2546.0,0.002]
[1751949760252,38.07817574,2546.1,2546.0,0.002]
[1751949760548,38.07804502,2546.1,2546.0,0.002]
[1751949765625,10.8147,2545.9,2545.5,0.002]
[1751949765826,5.92708821,2545.7,2545.5,0.002]
[1751949766152,12.25254066,2545.6,2545.5,0.002]
[1751949768156,16.18088761,2545.6,2545.5,0.002]
[1751949769565,17.33514851,2545.6,2545.5,0.002]
[1751949769730,18.74737382,2545.6,2545.5,0.002]
[1751949770062,20.18606879,2545.6,2545.5,0.002]
[1751949771127,20.38665054,2545.6,2545.5,0.002]
[1751949772257,30.38665054,2545.6,2545.5,0.002]
[1751949774365,32.15087724,2545.6,2545.5,0.002]
[1751949775137,32.15130326,2545.6,2545.5,0.002]
[1751949776255,33.59430326,2545.6,2545.5,0.002]
[1751949778176,33.59497406,2545.6,2545.5,0.002]
[1751949778674,31.83074736,2545.6,2545.5,0.002]
[1751949778977,33.59815064,2545.6,2545.5,0.002]
[1751949780772,31.46254817,2545.6,2545.5,0.002]
[1751949780976,34.18346188,2545.6,2545.5,0.002]
[1751949782051,34.18346188,2545.6,2545.1,0.002]
[1751949782052,3.92896432,2545.2,2545.1,0.002]
[1751949782261,3.92896432,2545.2,2544.9,0.002]
[1751949782262,20.6084069,2545.1,2544.9,0.002]
[1751949782571,31.40375668,2545.0,2544.9,0.002]
[1751949782767,33.89002976,2545.0,2544.9,0.002]
[1751949782969,35.33302976,2545.0,2544.9,0.002]
[1751949783164,35.811029,2545.0,2544.9,0.002]
[1751949784485,35.44278503,2545.0,2544.9,0.002]
[1751949784782,35.81057767,2545.0,2544.9,0.002]
[1751949785790,36.10365872,2545.0,2544.9,0.002]
[1751949785987,36.10357171,2545.0,2544.9,0.002]
[1751949788911,36.1033728,2545.0,2544.9,0.002]
[1751949789578,36.10333276,2545.0,2544.9,0.002]
[1751949791409,34.66033276,2545.0,2544.9,0.002]
[1751949791596,20.30497147,2545.0,2544.9,0.002]
[1751949791775,12.91897147,2545.0,2544.9,0.002]
[1751949791980,20.30497147,2545.0,2544.9,0.002]
[1751949793580,12.91897147,2545.0,2544.9,0.002]
[1751949793780,18.86197147,2545.0,2544.9,0.002]
[1751949794804,12.91897147,2545.0,2544.9,0.002]
[1751949795016,6.31119919,2545.0,2544.9,0.8341]
[1751949795398,6.50719919,2545.0,2544.9,0.8341]
[1751949795599,6.139,2545.0,2544.9,0.8341]
[1751949796107,0.196,2545.0,2544.9,0.8341]
[1751949798003,0.196,2545.1,2544.9,0.8341]
[1751949804995,1.443,2545.4,2544.9,0.8341]
[1751949804996,0.196,2545.3,2544.9,0.8341]
[1751949805200,0.3677793,2545.2,2545.0,0.8191]
[1751949805913,0.196,2545.3,2545.0,0.8191]
[1751949814152,0.197,2545.3,2545.0,0.8191]
[1751949823483,0.36816271,2545.2,2545.0,0.8191]
[1751949827394,0.197,2545.3,2545.0,0.8191]
[1751949827600,0.3685631,2545.2,2545.0,0.8191]
[1751949827765,0.197,2545.3,2545.0,0.8191]
[1751949827965,0.36856333,2545.2,2545.0,0.8191]
[1751949828168,0.197,2545.3,2545.0,0.8191]
[1751949828469,0.36856329,2545.2,2545.0,0.8191]
[1751949828668,0.36856329,2545.1,2545.0,0.8191]
[1751949828865,0.197,2545.3,2545.0,0.8191]
[1751949828866,0.36856329,2545.2,2545.0,0.8191]
[1751949829083,0.36856329,2545.1,2545.0,0.8191]
[1751949829605,0.36856329,2545.1,2544.9,0.002]
[1751949829904,0.36860533,2545.0,2544.9,0.002]
[1751949830105,0.36860533,2545.1,2544.9,0.002]
[1751949830399,0.36860533,2545.0,2544.9,0.002]
[1751949831489,0.56460533,2545.0,2544.9,0.002]
[1751949835689,0.196,2545.0,2544.9,0.002]
[1751949836194,0.5645571,2545.0,2544.9,0.002]
[1751949841217,0.56452012,2545.0,2544.9,0.002]
[1751949842406,1.01397276,2545.0,2544.9,0.002]
[1751949844797,0.56452012,2545.0,2544.9,0.002]
[1751949849717,0.56446888,2545.0,2544.9,0.002]
[1751949855633,0.5645006,2545.0,2544.9,0.002]
[1751949857936,0.5655006,2545.0,2544.9,0.002]
[1751949858832,0.56559438,2545.0,2544.9,0.002]
[1751949859040,1.88314672,2545.0,2544.9,0.002]
[1751949860237,3.66740209,2545.0,2544.9,0.002]
[1751949866234,3.66744344,2545.0,2544.9,0.002]
[1751949867543,3.29880756,2545.0,2544.9,0.002]
[1751949867710,3.66746309,2545.0,2544.9,0.002]
[1751949869344,2.25184375,2545.0,2544.9,0.002]
[1751949869510,3.66762139,2545.0,2544.9,0.002]
[1751949871341,0.73829141,2545.0,2544.9,0.7903]
[1751949871547,0.001,2545.0,2544.9,0.9863]
[1751949878334,0.001,2545.0,2544.9,4.91572748]
[1751949878633,0.001,2545.0,2544.9,0.9863]
[1751949885178,0.001,2545.0,2544.9,4.91572748]
[1751949886685,0.001,2545.0,2544.9,5.80439805]
[1751949889097,0.001,2545.0,2544.9,1.87497057]
[1751949889405,0.001,2545.0,2544.9,5.80439805]
[1751949890707,0.001,2545.0,2544.9,5.84369232]
[1751949891278,0.001,2545.0,2544.9,1.91426484]
[1751949891907,0.001,2545.0,2544.9,1.87497057]
[1751949892608,0.001,2545.0,2544.9,7.81197057]
[1751949901019,0.001,2545.0,2544.9,11.74139805]
[1751949901217,0.001,2545.0,2544.9,7.81197057]
[1751949901935,0.001,2545.0,2544.9,11.74139805]
[1751949903312,0.001,2545.0,2544.9,17.04214348]
[1751949903842,0.001,2545.0,2544.9,27.04214348]
[1751949913654,0.001,2545.0,2544.9,22.29139805]
[1751949923594,0.001,2545.0,2544.9,27.04214348]
[1751949924287,0.001,2545.0,2544.9,22.29139805]
[1751949924889,0.001,2545.0,2544.9,23.72939805]
[1751949932375,1e-08,2545.0,2544.9,23.72939805]
[1751949934076,1e-08,2545.2,2545.1,5.28461869]
[1751949934283,1e-08,2545.2,2545.1,20.05354778]
[1751949934609,1e-08,2545.2,2545.1,20.0142566]
[1751949937107,1e-08,2545.3,2545.2,4.47896432]
[1751949937308,1e-08,2545.3,2545.2,15.34085396]
[1751949937480,1e-08,2545.3,2545.2,15.30156432]
[1751949937680,1e-08,2545.3,2545.2,19.09052052]
[1751949940792,1e-08,2545.3,2545.2,25.02081411]
[1751949953622,1e-08,2545.3,2545.2,29.16281411]
[1751949953809,1e-08,2545.3,2545.2,25.02081411]
[1751949956444,1e-08,2545.3,2545.2,32.39081411]
[1751949956740,1e-08,2545.3,2545.2,31.56821411]
[1751949968330,1e-08,2545.3,2545.2,25.63721411]
[1751949968534,1e-08,2545.3,2545.2,31.56821411]
[1751949970746,1e-08,2545.3,2545.2,25.63721411]
[1751949970945,1e-08,2545.3,2545.2,31.56821411]
[1751949977189,1e-08,2545.3,2545.2,25.63692052]
[1751949978584,1e-08,2545.3,2545.2,19.70592052]
[1751949978787,0.76870001,2545.3,2545.2,9.85896432]
[1751949978989,0.76870001,2545.3,2545.2,19.85896432]
[1751949979483,0.76870001,2545.3,2545.2,14.47896432]
[1751949979687,0.76870001,2545.3,2545.2,20.40896432]
[1751949983681,1e-08,2545.3,2545.2,26.34300089]
[1751949983988,1e-08,2545.3,2545.2,29.39001267]
[1751949985295,1e-08,2545.3,2545.2,23.4559761]
[1751949996904,1e-08,2545.3,2545.2,17.5259761]
[1751949997418,1e-08,2545.3,2545.2,21.84896432]
[1751949998921,1e-08,2545.3,2545.2,14.47896432]
[1751949999122,1e-08,2545.3,2545.2,20.40996432]
[1751950001629,1e-08,2545.3,2545.2,14.47896432]
[1751950001794,1e-08,2545.3,2545.1,0.198]
[1751950002123,0.7568,2545.2,2545.1,0.198]
[1751950002310,0.7568,2545.2,2545.1,6.129]
[1751950011744,0.7568,2545.2,2545.1,0.002]
[1751950012614,1.62188366,2545.2,2545.1,0.002]
[1751950012819,1.63508366,2545.2,2545.1,0.002]
[1751950019630,6.29877818,2545.2,2545.1,0.002]
[1751950022063,2.36981386,2545.2,2545.1,0.002]
[1751950022565,6.29877818,2545.2,2545.1,0.002]
[1751950023568,6.29871346,2545.2,2545.1,0.002]
[1751950024239,17.70929221,2545.2,2545.1,0.002]
[1751950025437,13.92911869,2545.1,2545.0,0.002]
[1751950025649,30.34840647,2545.1,2545.0,0.002]
[1751950026164,31.78640647,2545.1,2545.0,0.002]
[1751950026535,31.41910249,2545.1,2545.0,0.002]
[1751950026737,31.05174099,2545.1,2545.0,0.002]
[1751950036466,29.64116224,2545.1,2545.0,0.002]
[1751950036792,31.05273842,2545.1,2545.0,0.002]
[1751950041270,32.81720864,2545.1,2545.0,0.002]
[1751950043371,27.45108995,2545.1,2545.0,0.002]
[1751950043572,31.38020864,2545.1,2545.0,0.002]
[1751950044594,21.51808995,2545.1,2545.0,0.002]
[1751950044796,19.75361973,2545.1,2545.0,0.002]
[1751950045001,25.68661973,2545.1,2545.0,0.002]
[1751950047073,27.45108995,2545.1,2545.0,0.002]
[1751950053193,25.68661973,2545.1,2545.0,0.002]
[1751950053615,27.45671087,2545.1,2545.0,0.002]
[1751950054189,25.68761973,2545.1,2545.0,0.002]
[1751950054527,26.05639052,2545.1,2545.0,0.002]
[1751950054816,26.42516132,2545.1,2545.0,0.002]
[1751950056213,26.42937211,2545.1,2545.0,0.002]
[1751950058402,26.42936887,2545.1,2545.0,0.002]
[1751950058820,25.24682381,2545.1,2545.0,0.002]
[1751950061016,27.01686537,2545.1,2545.0,0.002]
[1751950064223,26.24936537,2545.1,2545.0,0.002]
[1751950064418,26.24836537,2545.1,2545.0,0.002]
[1751950067225,26.24830276,2545.1,2545.0,0.002]
[1751950068034,24.4782612,2545.1,2545.0,0.002]
[1751950069608,18.5462612,2545.1,2545.0,0.002]
[1751950069808,24.4782612,2545.1,2545.0,0.002]
[1751950070407,18.5462612,2545.1,2545.0,0.002]
[1751950070809,24.4782612,2545.1,2545.0,0.002]
[1751950073128,18.5462612,2545.1,2545.0,0.002]
[1751950073325,24.4782612,2545.1,2545.0,0.002]
[1751950077717,26.24863133,2545.1,2545.0,0.002]
[1751950077916,24.4782612,2545.1,2545.0,0.002]
[1751950078311,26.24863476,2545.1,2545.0,0.002]
[1751950078517,24.4782612,2545.1,2545.0,0.002]
[1751950078826,24.4783617,2545.1,2545.0,0.002]
[1751950079032,26.24873336,2545.1,2545.0,0.002]
[1751950079324,24.4783617,2545.1,2545.0,0.002]
[1751950079737,26.24873637,2545.1,2545.0,0.002]
[1751950080044,24.4783617,2545.1,2545.0,0.002]
[1751950082147,28.40748039,2545.1,2545.0,0.002]
[1751950082361,24.4783617,2545.1,2545.0,0.002]
[1751950083548,24.10962383,2545.1,2545.0,0.002]
[1751950083846,24.47851068,2545.1,2545.0,0.002]
[1751950089135,26.24910123,2545.1,2545.0,0.002]
[1751950089743,3.92510274,2545.1,2545.0,0.002]
[1751950089950,9.85610274,2545.1,2545.0,0.002]
[1751950090149,8.08551219,2545.1,2545.0,0.002]
[1751950090557,8.08532105,2545.1,2545.0,0.002]
[1751950090861,2.15432105,2545.1,2545.0,0.002]
[1751950091751,2.15432105,2545.1,2545.0,0.7534]
[1751950092235,0.73853408,2545.1,2545.0,0.7534]
[1751950092555,0.73831602,2545.1,2545.0,0.7534]
[1751950098379,0.36976704,2545.1,2545.0,0.7534]
[1751950099365,0.001,2545.1,2545.0,0.7534]
[1751950101353,0.001,2545.1,2545.0,1.24166805]
[1751950101873,0.001,2545.1,2545.0,5.36694113]
[1751950103463,0.001,2545.1,2545.0,1.43766805]
[1751950109606,0.001,2545.1,2545.0,0.9494]
[1751950119194,0.3691529,2545.1,2545.0,0.9494]
[1751950119567,0.001,2545.1,2545.0,0.9494]
[1751950119771,0.3691529,2545.1,2545.0,0.9494]
[1751950119973,0.001,2545.1,2545.0,0.9494]
[1751950120293,0.3691529,2545.1,2545.0,0.198]
[1751950120468,0.73766022,2545.1,2545.0,5.931]
[1751950120666,1.54846022,2545.1,2545.0,0.002]
[1751950120886,2.17845539,2545.1,2545.0,0.002]
[1751950121086,3.59374242,2545.1,2545.0,0.002]
[1751950121688,3.59420398,2545.1,2545.0,0.002]
[1751950121962,2.17891695,2545.1,2545.0,0.002]
[1751950122896,1.54892178,2545.1,2545.0,0.002]
[1751950126199,0.73812178,2545.1,2545.0,0.002]
[1751950131814,0.36961446,2545.1,2545.0,0.002]
[1751950138623,0.36960735,2545.1,2545.0,0.002]
[1751950139418,2.44522649,2545.1,2545.0,0.002]
[1751950139715,3.16489829,2545.1,2545.0,0.002]
[1751950139917,3.53352486,2545.1,2545.0,0.002]
[1751950140721,0.56562657,2545.1,2545.0,0.002]
[1751950141711,0.93424712,2545.1,2545.0,0.002]
[1751950142227,0.93425113,2545.1,2545.0,0.002]
[1751950145112,0.56562657,2545.1,2545.0,0.002]
[1751950145317,0.93428554,2545.1,2545.0,0.002]
[1751950145632,0.9342878,2545.1,2545.0,0.002]
[1751950147733,1.16926805,2545.1,2545.0,0.002]
[1751950150830,0.43198025,2545.1,2545.0,0.002]
[1751950152103,0.001,2545.1,2545.0,0.002]
[1751950153539,0.36979681,2545.1,2545.0,0.002]
[1751950154335,0.001,2545.1,2545.0,0.002]
[1751950155136,0.73859318,2545.1,2545.0,0.002]
[1751950157737,0.73857671,2545.1,2545.0,0.002]
[1751950163641,0.73854369,2545.1,2545.0,0.002]
[1751950166532,0.73853339,2545.1,2545.0,0.002]
[1751950166729,5.72502971,2545.1,2545.0,0.002]
[1751950167035,7.93604439,2545.1,2545.0,0.002]
[1751950169312,7.93595863,2545.1,2545.0,0.002]
[1751950172150,11.86498603,2545.1,2545.0,0.002]
[1751950172353,29.53487658,2545.1,2545.0,0.002]
[1751950172529,27.76428603,2545.1,2545.0,0.002]
[1751950173134,25.60357686,2545.1,2545.0,0.002]
[1751950174724,23.83516734,2545.1,2545.0,0.002]
[1751950176315,23.83354218,2545.1,2545.0,0.002]
[1751950177815,25.23212396,2545.1,2545.0,0.002]
[1751950178016,25.23212396,2545.1,2544.4,0.196]
[1751950178017,0.196,2545.0,2544.4,0.11821809]
[1751950178228,6.8602667,2544.9,2544.4,0.11821809]
[1751950178428,2.15015622,2544.8,2544.4,0.11821809]
[1751950178638,0.7362667,2544.7,2544.4,0.11821809]
[1751950178817,0.7362667,2544.6,2544.4,0.11821809]
[1751950179136,1.41388952,2544.8,2544.4,0.11821809]
[1751950179316,0.73614428,2544.7,2544.4,0.11821809]
[1751950179517,0.73614428,2544.6,2544.4,0.11821809]
[1751950179717,1.41332065,2544.8,2544.4,0.11821809]
[1751950179945,0.73608828,2544.7,2544.4,0.11821809]
[1751950180151,0.7360884,2544.6,2544.4,0.11821809]
[1751950180350,6.124,2544.9,2544.4,0.11821809]
[1751950180559,0.73602648,2544.8,2544.4,0.11821809]
[1751950180713,0.73602648,2544.7,2544.4,0.11821809]
[1751950180917,0.73602648,2544.6,2544.4,0.11821809]
[1751950181237,6.124,2544.9,2544.4,0.11821809]
[1751950181420,0.7359997,2544.8,2544.4,0.11821809]
[1751950181618,0.7359997,2544.7,2544.4,0.11821809]
[1751950181821,0.36799985,2544.6,2544.4,0.11821809]
[1751950182020,6.124,2544.9,2544.4,0.11821809]
[1751950182235,0.73599989,2544.8,2544.4,0.11821809]
[1751950182441,0.73599989,2544.7,2544.4,0.11821809]
[1751950182649,0.36800002,2544.6,2544.4,0.11821809]
[1751950182952,6.124,2544.9,2544.4,0.11821809]
[1751950183247,0.73598394,2544.8,2544.4,0.11821809]
[1751950183548,0.73598394,2544.7,2544.4,0.11821809]
[1751950183728,0.36799197,2544.6,2544.4,0.11821809]
[1751950183929,6.124,2544.9,2544.4,0.11821809]
[1751950184124,0.73597218,2544.8,2544.4,0.11821809]
[1751950184325,0.73597218,2544.7,2544.4,0.11821809]
[1751950184665,0.36798609,2544.6,2544.4,0.11821809]
[1751950184841,6.124,2544.9,2544.4,0.11821809]
[1751950185052,0.73596476,2544.8,2544.4,0.11821809]
[1751950185246,0.73596476,2544.7,2544.4,0.11821809]
[1751950185447,0.36798238,2544.6,2544.4,0.11821809]
[1751950185747,6.124,2544.9,2544.4,0.11821809]
[1751950185962,0.73596871,2544.8,2544.4,0.11821809]
[1751950186167,0.73596868,2544.7,2544.4,0.11821809]
[1751950186465,0.36798434,2544.6,2544.4,0.11821809]
[1751950186653,6.124,2544.9,2544.4,0.11821809]
[1751950186826,0.73596234,2544.8,2544.4,0.11821809]
[1751950187027,0.73596234,2544.7,2544.4,0.11821809]
[1751950187226,6.124,2544.9,2544.4,0.11821809]
[1751950187430,0.73599534,2544.8,2544.4,0.11821809]
[1751950187656,0.73599534,2544.7,2544.4,0.11821809]
[1751950187855,0.36799767,2544.6,2544.4,0.11821809]
[1751950188054,6.124,2544.9,2544.4,0.11821809]
[1751950188258,0.73601774,2544.8,2544.4,0.11821809]
[1751950188497,0.73601774,2544.7,2544.4,0.11821809]
[1751950188657,0.36800887,2544.6,2544.4,0.11821809]
[1751950188861,6.124,2544.9,2544.4,0.11821809]
[1751950189066,1.34844644,2544.8,2544.4,0.11821809]
[1751950189367,5.68353795,2544.7,2544.3,0.002]
[1751950189545,0.73604644,2544.6,2544.3,0.002]
[1751950189864,0.196,2544.7,2544.3,0.002]
[1751950190068,0.7361075,2544.6,2544.3,0.002]
[1751950190235,0.196,2544.7,2544.3,0.002]
[1751950190563,0.73615215,2544.6,2544.3,0.002]
[1751950190761,0.3680761,2544.5,2544.3,0.002]
[1751950190953,1.42600915,2544.7,2544.3,0.002]
[1751950191150,0.73617154,2544.6,2544.3,0.002]
[1751950191367,0.36808582,2544.5,2544.3,0.002]
[1751950191569,1.42600915,2544.7,2544.3,0.002]
[1751950191747,0.73622128,2544.6,2544.3,0.002]
[1751950191947,0.36811064,2544.5,2544.3,0.002]
[1751950192148,1.42600915,2544.7,2544.3,0.002]
[1751950192348,0.73628746,2544.6,2544.3,0.002]
[1751950192669,0.73628746,2544.5,2544.3,0.002]
[1751950192837,0.21622966,2544.5,2544.3,0.002]
[1751950193040,0.56414533,2544.4,2544.3,0.002]
[1751950193368,0.93231279,2544.4,2544.3,0.002]
[1751950195750,0.196,2544.4,2544.3,0.002]
[1751950195950,0.93240066,2544.4,2544.3,0.002]
[1751950196369,0.73640066,2544.4,2544.3,0.8207]
[1751950198441,0.73640066,2544.4,2544.3,0.002]
[1751950201066,0.73648856,2544.4,2544.3,0.002]
[1751950203160,0.97118198,2544.4,2544.3,0.002]
[1751950203375,3.21812758,2544.4,2544.3,0.002]
[1751950204691,2.38562758,2544.4,2544.3,0.002]
[1751950204852,0.93248856,2544.4,2544.3,0.002]
[1751950209494,3.17791712,2544.4,2544.3,0.002]
[1751950212471,3.17791276,2544.4,2544.3,0.002]
[1751950213464,3.37850374,2544.4,2544.3,0.002]
[1751950213794,3.17791276,2544.4,2544.3,0.002]
[1751950213962,4.25749425,2544.4,2544.3,0.002]
[1751950215312,4.25748235,2544.4,2544.3,0.002]
[1751950220114,8.187682,2544.4,2544.3,0.002]
[1751950223108,4.25748235,2544.4,2544.3,0.002]
[1751950223289,8.187682,2544.4,2544.3,0.002]
[1751950223474,4.25748235,2544.4,2544.3,0.002]
[1751950223675,6.02382238,2544.4,2544.3,0.002]
[1751950224307,4.25748235,2544.4,2544.3,0.002]
[1751950224805,3.42648235,2544.4,2544.3,0.002]
[1751950225678,9.35548235,2544.4,2544.3,0.002]
[1751950227484,10.15618235,2544.4,2544.3,0.002]
[1751950227685,14.086382,2544.4,2544.3,0.002]
[1751950227889,10.15618235,2544.4,2544.3,0.002]
[1751950228187,11.92252238,2544.4,2544.3,0.002]
[1751950228583,10.15618235,2544.4,2544.3,0.002]
[1751950230620,11.92252238,2544.4,2544.3,0.002]
[1751950232919,11.92278837,2544.4,2544.3,0.002]
[1751950233214,5.62528623,2544.4,2544.3,0.002]
[1751950233415,9.35576828,2544.4,2544.3,0.002]
[1751950235227,3.42676828,2544.4,2544.3,0.002]
[1751950235401,8.27651133,2544.4,2544.3,0.002]
[1751950237291,10.04285136,2544.4,2544.3,0.002]
[1751950238023,8.27651133,2544.4,2544.3,0.002]
[1751950238330,10.04285136,2544.4,2544.3,0.002]
[1751950240930,4.11385136,2544.4,2544.3,0.002]
[1751950241224,8.27651133,2544.4,2544.3,0.002]
[1751950242101,2.34751133,2544.4,2544.3,0.002]
[1751950245996,2.15151133,2544.4,2544.3,0.8087]
[1751950246209,2.15257341,2544.4,2544.3,0.8087]
[1751950246431,0.73708277,2544.4,2544.3,0.8087]
[1751950247633,0.73710669,2544.4,2544.3,0.8087]
[1751950251016,0.73710669,2544.4,2544.3,1.3024334]
[1751950252519,0.368546,2544.4,2544.3,5.23278752]
[1751950252714,0.001,2544.5,2544.3,10.55008752]
[1751950252932,0.001,2544.5,2544.4,0.7573]
[1751950253100,0.001,2544.5,2544.4,2.28108326]
[1751950254725,0.001,2544.5,2544.4,6.21128291]
[1751950254930,0.001,2544.5,2544.4,6.2505849]
[1751950255141,0.001,2544.5,2544.4,16.2505849]
[1751950255306,0.001,2544.5,2544.4,16.76128291]
[1751950255943,0.001,2544.5,2544.4,22.70140248]
[1751950261228,0.001,2544.5,2544.4,22.69428291]
[1751950262550,0.001,2544.5,2544.4,16.76128291]
[1751950262849,0.001,2544.5,2544.4,24.13028291]
[1751950264036,0.001,2544.5,2544.4,6.76128291]
[1751950264426,0.001,2544.5,2544.4,12.69528291]
[1751950266237,0.001,2544.5,2544.4,8.76508326]
[1751950266448,0.001,2544.5,2544.4,12.69528291]
[1751950266619,0.001,2544.5,2544.4,12.14528291]
[1751950266822,0.001,2544.5,2544.4,6.6913]
[1751950267841,0.001,2544.5,2544.4,10.62149965]
[1751950270652,0.001,2544.5,2544.4,10.62049965]
[1751950283056,0.001,2544.5,2544.4,6.6903]
[1751950283612,0.001,2544.5,2544.4,0.7573]
[1751950283858,0.001,2544.5,2544.4,6.6883]
[1751950285454,0.001,2544.5,2544.4,10.61849965]
[1751950285837,0.001,2544.5,2544.4,6.6883]
[1751950290881,0.001,2544.5,2544.3,0.198]
[1751950291034,0.001,2544.5,2544.4,5.931]
[1751950291370,0.001,2544.5,2544.4,0.002]
[1751950291538,0.001,2544.5,2544.4,5.931]
[1751950292961,0.001,2544.5,2544.4,0.002]
[1751950293131,0.001,2544.5,2544.4,5.931]
[1751950293338,0.001,2544.5,2544.4,0.002]
[1751950293538,0.001,2544.5,2544.4,5.93]
[1751950303278,7.09253807,2544.5,2544.4,0.002]
[1751950303477,8.31209923,2544.5,2544.4,0.002]
[1751950303678,9.72800715,2544.5,2544.4,0.002]
[1751950303959,3.78788758,2544.5,2544.4,0.002]
[1751950306660,3.78736397,2544.5,2544.4,0.002]
[1751950307270,13.65752873,2544.5,2544.4,0.002]
[1751950307458,9.72748354,2544.5,2544.4,0.002]
[1751950307657,13.65752873,2544.5,2544.4,0.002]
[1751950309595,9.72748354,2544.5,2544.4,0.002]
[1751950312303,13.65752873,2544.5,2544.4,0.002]
[1751950312501,23.65709648,2544.5,2544.4,0.002]
[1751950318526,23.65692304,2544.5,2544.4,0.002]
[1751950320821,23.6557583,2544.5,2544.4,0.002]
[1751950327329,25.42425477,2544.5,2544.4,0.002]
[1751950330223,25.05666613,2544.5,2544.4,0.002]
[1751950330424,25.42459202,2544.5,2544.4,0.002]
[1751950331521,23.65609555,2544.5,2544.4,0.002]
[1751950332125,23.65632625,2544.5,2544.4,0.002]
[1751950333330,26.00895322,2544.5,2544.4,0.002]
[1751950334123,25.65528106,2544.5,2544.4,0.002]
[1751950334945,31.93795322,2544.5,2544.4,0.002]
[1751950335119,31.93944499,2544.5,2544.4,0.002]
[1751950335319,28.0093998,2544.5,2544.4,0.002]
[1751950335852,28.00942839,2544.5,2544.4,0.002]
[1751950336347,31.93947358,2544.5,2544.4,0.002]
[1751950336647,28.00942839,2544.5,2544.4,0.002]
[1751950337162,27.22672839,2544.5,2544.4,0.002]
[1751950337726,21.28660882,2544.5,2544.4,0.002]
[1751950343418,20.43576616,2544.5,2544.4,0.002]
[1751950344246,18.08313919,2544.5,2544.4,0.002]
[1751950345339,19.85359357,2544.5,2544.4,0.002]
[1751950346854,19.85370407,2544.5,2544.4,0.002]
[1751950347557,13.92470407,2544.5,2544.4,0.002]
[1751950347856,19.85370407,2544.5,2544.4,0.002]
[1751950348925,16.66737609,2544.5,2544.4,0.002]
[1751950349124,19.85320498,2544.5,2544.4,0.002]
[1751950349823,19.85328293,2544.5,2544.4,0.002]
[1751950350359,18.08337799,2544.5,2544.4,0.002]
[1751950351435,19.85317584,2544.5,2544.4,0.002]
[1751950355842,25.79329541,2544.5,2544.4,0.002]
[1751950356968,24.60658194,2544.5,2544.4,0.002]
[1751950358678,24.60650918,2544.5,2544.4,0.002]
[1751950361470,24.23781854,2544.5,2544.4,0.002]
[1751950361637,24.60654313,2544.5,2544.4,0.002]
[1751950363733,24.60554313,2544.5,2544.4,0.002]